[Event "TUR-ch U13-18 Open 2023"]
[Site "Antalya"]
[Date "2023.01.22"]
[Round "1"]
[White "Emre, Alaattin Eren"]
[Black "Ozen, Metehan"]
[Result "0-1"]
[ECO "B22"]
[WhiteElo "1345"]
[BlackElo "2137"]
[Annotator "TA"]
[PlyCount "47"]
[EventDate "2023.01.17"]
[EventType "swiss"]
[EventCountry "TUR"]
[SourceTitle "playchess.com"]
[Source "ChessBase"]
[SourceQuality "1"]
[TimeControl "5400+30"]

{[%evp 9,47,-6,-4,-15,0,16,6,2,0,-3,0,2,33,0,0,-53,27,-2,67,-186,-191,-200,-200,-182,-138,-329,-335,-570,-538,-507,-550,-557,-557,-792,-787,-804,-780,-29986,-1311,-1237]} 1. e4 c5 2. c3 {[%cal Bc2c3,Bc3d4][%mdl 32]} g6 3. d4 cxd4 4. cxd4 d5 5. Nc3 dxe4 6. Bc4 {B22: Sicilian: 2 c3.} Nf6 7. Qb3 e6 8. d5 {Against Nc6. The position is equal.} exd5 9. Nxd5 {[#] Strongly threatening Bg5.} Nxd5 (9... Bg7 {with more complications.} 10. Bg5 O-O 11. Rd1 Nbd7) 10. Bxd5 Qe7 ({But not} 10... Qa5+ 11. Bd2 Qc7 12. Bc3 $16 (12. Bxe4 Bg7 $14)) 11. Bd2 {[%mdl 1024] Inhibits Qb4. And now Qc3 would win. White has compensation.} (11. Qc3 $5 {[%cal Rc3c8]} Qb4 12. Bd2 Qxc3 13. Bxc3 $14) 11... Nd7 {[#]} 12. Rc1 $146 (12. Qa4 $11) ({Predecessor:} 12. Qa4 e3 13. fxe3 Bg7 14. Bb4 Qxe3+ 15. Ne2 f5 16. Rd1 Bf8 17. Bc3 Bc5 18. Rf1 {1-0 Krejic,I (2233)-Ivanovic,L (2117) Gligoric Cup 5th 2018 (4.4)}) 12... Nf6 (12... Nc5 $2 13. Rxc5 Qxc5 14. Bxf7+ (14. Bc3 Be6 $16) 14... Kd8 15. Qc3 Qxc3 16. Bxc3 $18) (12... Ne5 $15 13. Kf1 Bf5) 13. Bc3 Bh6 (13... Bg7 $11) 14. Qb5+ $2 {[%mdl 8192]} (14. Bb4 $1 $14 {was forced to keep a grip.} Qd7 15. Qc3) 14... Bd7 $19 15. Qxb7 O-O 16. Rd1 e3 {Hoping for ...exf2+.} 17. f3 {[#] This costs White the game.} (17. f4 $17 {only move.} Nxd5 18. Rxd5) 17... Rab8 $1 ({Not} 17... Nxd5 18. Qxd5 e2 19. Nxe2 $11) 18. Bxf6 $2 (18. Qc7 Rfc8 19. Qe5 Qxe5 20. Bxe5 Nxd5 21. Bxb8 Rxb8 22. Rxd5) 18... Qxf6 19. Qxd7 Rxb2 {( -> ...Qc3+)} 20. Ne2 {Wards off Qc3+} Qa6 {[%csl Gb2][%cal Ra6e2]} 21. Bxf7+ Rxf7 {[%csl Gb2][%cal Ra6e2]} 22. Qd8+ Bf8 {[%csl Gb2][%cal Ra6e2]} 23. Qd3 Qxd3 (23... Bb4+ $142 24. Kf1 Rd7 {[%mdl 64] Pin, Skewer} 25. Qxe3 Rxd1+ 26. Kf2 Rxh1 27. Qe8+ Bf8 28. f4 Qd3 29. Qe6+ Kg7 30. Qe5+ Kf7 31. Qc7+ Be7 32. Qc4+ Qxc4 33. Ke3 Rxe2+ 34. Kf3 Qe4+ {[%mdl 64] Skewer, Deflection} 35. Kg4 Qxg2#) 24. Rxd3 {Artfully played by Ozen.   Weighted Error Value: White=1.00/Black=0.35} 0-1

[Event "TUR-ch U13-18 Open 2023"]
[Site "Antalya"]
[Date "2023.01.22"]
[Round "1"]
[White "Gupluce, Melih"]
[Black "Demirtas, Alper"]
[Result "0-1"]
[ECO "C02"]
[WhiteElo "1309"]
[BlackElo "1990"]
[Annotator "TA"]
[PlyCount "97"]
[EventDate "2023.01.17"]
[EventType "swiss"]
[EventCountry "TUR"]
[SourceTitle "playchess.com"]
[Source "ChessBase"]
[SourceQuality "1"]
[TimeControl "5400+30"]

{[%evp 17,97,25,25,18,25,21,23,0,0,-4,0,0,0,0,14,13,19,8,19,-12,-9,-20,0,-18,-10,-16,0,-18,-16,-4,-14,-8,-12,-35,-43,-41,-40,-37,-33,-114,-107,-150,-151,-143,-149,-179,-147,-148,-151,-151,-158,-147,-154,-154,-161,-166,-157,-155,-111,-203,-218,-191,-203,-200,-164,-202,-196,-251,-262,-262,-268,-272,-272,-278,-278,-278,-278,-310,-303,-300,-275,-267]} 1. e4 e6 2. d4 d5 3. e5 c5 4. c3 Qb6 5. Nf3 Bd7 6. Bd3 Bb5 7. O-O Bxd3 8. Qxd3 Nc6 9. dxc5 Bxc5 10. b4 {C02: French: Advance Variation.} Bf8 11. Nbd2 Nge7 12. Nb3 {White has an edge.} Ng6 13. Re1 Be7 {Prevents h4.} 14. a4 {[#]} Qc7 $146 {[%cal Rg6e5]} ({Predecessor:} 14... O-O 15. a5 Qc7 16. Nbd4 Nxd4 17. Qxd4 f6 18. Qg4 f5 19. Qd4 Rfc8 20. Bd2 Qc4 {½-½ Nemeth,M (2451)-Muckle,J (2391) BL2-Sued 2122 2022 (1.3)}) 15. Qe2 Rc8 16. Bd2 O-O 17. Rac1 Nb8 18. Nbd4 Nd7 19. a5 a6 20. Nc2 Qc4 21. Qd1 Qc7 {[%cal Rg6e5]} 22. Qe2 Qb8 23. Na3 b5 {Threatening ...Bd8.} 24. axb6 $1 Qxb6 25. Be3 Qb7 26. Bd4 a5 27. Nc2 axb4 28. cxb4 (28. Rb1 $1 $15) 28... Rc4 $1 $17 {Black is more active.} (28... Bxb4 $6 29. Rb1 Rc4 30. Ne3 $15) 29. Nd2 Rc7 {[%cal Of8c8]} (29... Bxb4 30. Nxc4 Bxe1 31. Nd6 (31. Nxe1 Qa6 $15 {[%mdl 64] Pin}) (31. Rxe1 dxc4 32. Qxc4 Rc8 $17) 31... Bxf2+ 32. Qxf2 $16) 30. Nf3 Rfc8 (30... Bxb4 31. Rb1 Rc4 32. Ne3 $15) 31. b5 Ba3 {[%mdl 64] Pin} 32. b6 Rc6 ({And not} 32... Bxc1 33. bxc7 Bh6 34. g3 $17) 33. Ra1 Rxc2 34. Qb5 Bc5 35. Ra7 Qxb6 36. Qxd7 Rf8 $36 {[%mdl 2048] White is under strong pressure.} (36... Bxd4 $2 {leads to mate.} 37. Qxf7+ Kh8 38. Qxg7#) 37. Rb7 Qa5 38. Rb5 {[#]} (38. Qc7 $17 Qa8 39. Reb1 (39. Bxc5 Rxc5 40. Qxc5 Qxb7 $17)) 38... Qa4 $1 $19 ({Worse is} 38... Qa3 39. Qc7 Bxd4 40. Qxc2 Bxe5 41. Rb3 $11) 39. Bxc5 Rxc5 {[%mdl 64] Pin} 40. Rb7 Qa5 {[%cal Og6e5]} 41. Reb1 Qa3 {[%cal Og6e5] ...Nxe5! is the strong threat.} 42. h3 (42. Re1 $142) 42... Rc1+ {Black has a decisive advantage.} 43. Kh2 {[#]} Rxb1 44. Rxb1 Qa2 {[%csl LRb1,LRf2]} 45. Qb5 Qxf2 {[%cal Og6e5]} 46. Rb2 Qe3 47. Rb3 Qf4+ 48. g3 Qe4 {Threatens to win with ...Qc2+.} 49. Qd3 {Prevents Qc2+.   Weighted Error Value: White=0.15 (very precise) /Black=0.06 (flawless)} 0-1

[Event "TUR-ch U13-18 Open 2023"]
[Site "Antalya"]
[Date "2023.01.22"]
[Round "1"]
[White "Akdemir, Hamza Efe"]
[Black "Kavri, Yusuf Eren"]
[Result "0-1"]
[ECO "B56"]
[WhiteElo "1280"]
[BlackElo "2050"]
[Annotator "TA"]
[PlyCount "52"]
[EventDate "2023.01.17"]
[EventType "swiss"]
[EventCountry "TUR"]
[SourceTitle "playchess.com"]
[Source "ChessBase"]
[SourceQuality "1"]
[TimeControl "5400+30"]

{[%evp 12,52,9,-20,-34,-50,-61,-53,-58,-73,-30,-65,-54,-67,-40,-19,-8,0,0,-2,0,-20,-32,-103,-112,-110,-79,-180,-174,-180,-173,-241,-160,-171,-172,-509,-498,-895,-895,-895,-895,-1332,-1294]} 1. e4 {[%emt 0:01:00]} c5 {[%emt 0:02:00]} 2. Nf3 {[%emt 0:00:30][%cal Bg1f3,Bf3d4,Bd4e2][%mdl 32]} Nc6 {[%emt 0:00:30]} 3. d4 {[%emt 0:00:00]} cxd4 {[%emt 0:00:30]} 4. Nxd4 {[%emt 0:00:00]} Nf6 {[%emt 0:00:30]} 5. Nc3 {[%emt 0:00:30]} d6 {[%emt 0:00:30]} 6. h3 {[%emt 0:00:00]} e5 {[%emt 0:00:00]} 7. Nde2 {[%emt 0:00:00]} Be6 {[%emt 0:00:00] B56: Classical Sicilian: Unusual Lines.} 8. g4 {[%emt 0:00:00]} d5 {[%emt 0:00:30]} 9. exd5 {[%emt 0:00:00]} Nxd5 {[%emt 0:00:30] Black is slightly better.} ({Of course not} 9... Bxd5 10. Nxd5 Qxd5 11. Qxd5 Nxd5 12. Bg2 $11) 10. Bg2 {[%emt 0:00:00][%cal Rc3d5]} Bb4 {[%emt 0:07:30] [#]} 11. Bd2 $146 {[%emt 0:14:00]} ({Predecessor:} 11. O-O Nxc3 12. Nxc3 O-O 13. Bxc6 bxc6 14. Qe2 h5 15. Qxe5 hxg4 16. Ne4 gxh3 17. Bh6 gxh6 {1-0 Langmajer,J (1801)-Flajsman,P (2179) Plzen op 2021 (1)}) 11... O-O {[%emt 0:13:30]} 12. O-O {[%emt 0:04:30]} Nb6 {[%emt 0:04:30] Black is more active.} 13. Ne4 {[%emt 0:28:30]} Be7 {[%emt 0:08:30][%cal Oh7h5]} 14. b3 {[%emt 0:04:30]} Qc7 {[%emt 0:14:30]} 15. c4 {[%emt 0:04:30]} Rad8 {[%emt 0:02:30]} 16. Qc2 {[%emt 0:02:30]} f5 {[%emt 0:04:30]} 17. Ng5 {[%emt 0:13:30] [#]} ({Better is} 17. gxf5 $1 $15 Bxf5 18. N2g3) 17... Bc8 $1 $17 {[%emt 0:15:30] Hoping for ...h6.} 18. Rad1 {[%emt 0:18:46]} h6 {[%emt 0:07:27][%cal Bh7h6,Bh6g5][%mdl 32]} (18... fxg4 $2 19. Qxh7#) 19. Bd5+ {[%emt 0:01:47]} Nxd5 $19 {[%emt 0:00:30]} 20. cxd5 {[%emt 0:00:32][%cal Oc2c4]} hxg5 {[%emt 0:00:59]} ({Stronger than} 20... Bxg5 21. Bxg5 hxg5 22. dxc6 $17) 21. dxc6 {[%emt 0:00:58]} (21. Qc4 $142 Kh8 22. Ng3) 21... Qxc6 {[%emt 0:00:47]} ({Inferior is} 21... bxc6 22. Be3 $17) 22. Qxc6 {[%emt 0:03:13]} bxc6 {[%emt 0:00:30]} 23. f3 $2 {[%emt 0:00:30] [#]} (23. gxf5 Bxf5 24. Be3) 23... Ba6 {[%emt 0:03:07] Black is clearly winning.} 24. Kf2 {[%emt 0:01:14]} (24. Rfe1 $142 fxg4 25. hxg4) 24... fxg4 {[%emt 0:01:35]} 25. hxg4 {[%emt 0:00:01]} e4 {[%emt 0:00:22][%cal Be5e4,Be4f3][%mdl 32] And now ...Bc5+ would win.} 26. Ke1 {[%emt 0:01:01]} exf3 {[%emt 0:00:39] Weighted Error Value: White=0.98/Black=0.13 (very precise)} 0-1

[Event "TUR-ch U13-18 Open 2023"]
[Site "Antalya"]
[Date "2023.01.22"]
[Round "1"]
[White "Polat, Mehmet"]
[Black "Taspinar, Yanki"]
[Result "0-1"]
[ECO "C50"]
[WhiteElo "1258"]
[BlackElo "2275"]
[Annotator "TA"]
[PlyCount "66"]
[EventDate "2023.01.17"]
[EventType "swiss"]
[EventCountry "TUR"]
[SourceTitle "playchess.com"]
[Source "ChessBase"]
[SourceQuality "1"]
[TimeControl "5400+30"]

{[%evp 9,66,18,13,-24,-22,-17,-18,-14,-18,-15,-4,-14,0,-3,-2,-5,0,-12,-11,-32,-28,-37,-28,-41,-41,-41,-36,-77,-64,-74,-70,-97,-71,-82,-69,-85,-83,-116,-112,-110,-110,-127,-112,-114,-99,-144,-141,-139,-131,-137,-116,-130,-98,-132,-132,-141,-142,-327,-262]} 1. e4 e5 2. Nf3 Nc6 3. Bc4 Nf6 4. d3 Bc5 5. h3 d6 6. Be3 {C50: Hungarian Defence and Giuoco Pianissimo.} Bxe3 7. fxe3 Na5 {Hoping for ...Nxc4.} 8. Bb3 {The position is equal.} Nxb3 9. axb3 h6 10. Qe2 Qe7 11. Nc3 {[#]} c6 $146 ({Predecessor:} 11... Bd7 12. d4 O-O 13. O-O Bc6 14. Nd2 a6 15. Qf3 Rae8 16. Rae1 Nh7 17. Qg3 Qg5 {0-1 Wallner,J (1606)-Skapik,B (1822) SVK-chT4A21 1415 2014 (6.3)}) 12. O-O Nh7 13. Rad1 Ng5 14. d4 O-O 15. Rde1 Bd7 16. Qd1 b5 {[%cal Bb7b5,Bb5b4][%mdl 32]} 17. Qd3 b4 18. Nd1 c5 19. c4 Rad8 20. d5 g6 {[%cal Bg7g6,Bg6f5][%mdl 32]} 21. Kh2 f5 22. Nxg5 hxg5 23. exf5 e4 ({Of course not} 23... gxf5 $6 24. e4 f4 25. Nf2 $15) ({Much worse is} 23... Rxf5 $6 24. g4 e4 25. Qc2 Rxf1 26. Rxf1 $14) ({Much weaker is} 23... Bxf5 $6 24. e4 Bc8 25. Qe3 $11) 24. Qe2 gxf5 25. Nf2 Kg7 26. Nh1 Qe5+ 27. g3 Rh8 28. Nf2 Bc8 {Black has more active pieces.} 29. Kg2 Rh6 30. Rh1 Rdh8 31. Ra1 a6 32. Rae1 Rg6 33. g4 $2 {[#]} (33. Qc2 $17) 33... Rgh6 {Weighted Error Value: White=0.23 (precise) /Black=0.08 (flawless)} 0-1

[Event "TUR-ch U13-18 Open 2023"]
[Site "Antalya"]
[Date "2023.01.22"]
[Round "1"]
[White "Eroz, Deniz"]
[Black "Sozat, Arda"]
[Result "0-1"]
[ECO "D02"]
[WhiteElo "1195"]
[BlackElo "1877"]
[Annotator "NA RC COMBH"]
[PlyCount "96"]
[EventDate "2023.01.17"]
[EventType "swiss"]
[EventCountry "TUR"]
[SourceTitle "playchess.com"]
[Source "ChessBase"]
[SourceQuality "1"]
[TimeControl "5400+30"]

1. d4 Nf6 2. Nf3 d5 3. Bf4 c5 4. c3 Nc6 5. e3 Qb6 6. Qb3 c4 7. Qxb6 axb6 8. Nbd2 b5 9. Be2 Bf5 10. O-O h6 11. h3 e6 12. Ne5 Be7 13. f3 O-O 14. Rfe1 Nxe5 15. Bxe5 Nd7 16. Bh2 Nb6 17. e4 Bg6 18. b3 Ra3 19. Bc7 Ra6 20. Bf1 Bg5 21. f4 Rc8 22. fxg5 Rxc7 23. gxh6 gxh6 24. exd5 exd5 25. bxc4 bxc4 26. Nf3 Ra3 27. Ne5 Rxc3 28. Nxg6 fxg6 29. Re6 Rc6 30. Re7 Ra3 31. Rxb7 Nc8 32. Re1 Kf8 33. Re2 Nd6 34. Rb8+ Kf7 35. Rf2+ Ke7 36. Rg8 Nf5 37. Re2+ Re6 38. Rb2 Nxd4 39. Rb7+ Kf6 40. Rf8+ Kg5 41. h4+ Kg4 42. Rd8 Re5 43. Rb4 Kg3 44. h5 Rf3 45. Rb1 Rxh5 46. Bxc4 Rf2 47. Rb3+ Nxb3 48. Bxd5 Rh1+ 0-1

[Event "TUR-ch U13-18 Open 2023"]
[Site "Antalya"]
[Date "2023.01.22"]
[Round "1"]
[White "Yildirim, Orhun Ali"]
[Black "Temizer, Umut"]
[Result "0-1"]
[ECO "D35"]
[WhiteElo "1188"]
[BlackElo "1989"]
[Annotator "TA"]
[PlyCount "87"]
[EventDate "2023.01.17"]
[EventType "swiss"]
[EventCountry "TUR"]
[SourceTitle "playchess.com"]
[Source "ChessBase"]
[SourceQuality "1"]
[TimeControl "5400+30"]

{[%evp 13,87,-7,0,-6,-9,-24,-20,-28,-18,-50,-41,-51,-43,-43,-43,-46,-36,-51,-55,-44,-42,-44,-43,-43,-47,-169,-165,-166,-170,-160,-125,-112,-114,-126,-46,-48,-16,-113,-121,-135,-133,-142,-93,-207,-197,-379,-168,-169,-27,-28,-36,-97,-84,-241,-53,-67,-66,-201,-91,-123,-87,-253,-100,-498,-254,-250,-102,-591,-516,-512,-510,-508,-491,-493,-376,-325]} 1. d4 d5 2. Nf3 Nf6 3. c4 e6 4. Nc3 Be7 5. e3 O-O 6. cxd5 exd5 7. Bd3 c6 8. O-O {D35: Queen's Gambit Declined: Exchange Variation.} Bg4 9. b3 Nbd7 10. h3 {The position is equal.} Bh5 11. Bb2 Bd6 12. Be2 Re8 {[#]} 13. Nh4 $146 ({Predecessor:} 13. Nd2 Bg6 14. Bf3 Nf8 15. Re1 Ne6 16. Nf1 Ng5 17. Rc1 Nxf3+ 18. gxf3 Qd7 19. f4 Qxh3 {0-1 Tormos,M-Torrado Quintela,J Orense op 1997 (7)}) 13... Bxe2 14. Qxe2 Nf8 15. Nf5 Bc7 16. Na4 g6 17. Nh6+ Kg7 18. Ng4 Nxg4 19. hxg4 (19. Qxg4 $15 f5 20. Qf3) 19... Qh4 $1 $19 {[%csl Gc7][%cal Rh4h2]} 20. g3 Qh3 21. Nc5 Re7 $40 {[%mdl 128] Black attacks with force.} 22. Qf3 Ne6 23. Nxe6+ fxe6 (23... Rxe6 $17 24. g5 Bd8) 24. g5 $1 $15 Bd6 25. Qh1 (25. Qg2 $11 {remains equal.} Qxg2+ 26. Kxg2) 25... Qg4 $1 $17 26. Qh6+ Kg8 27. a4 {[#]} Qe2 (27... Rf8 $142 $1 28. Qh4 Qe2) 28. Rab1 (28. Ba3 $17 Bxa3 29. Rxa3) 28... Rf8 $19 29. Qh2 $2 (29. Qh3) 29... Rf5 (29... Rf3 $142 {Threatens to win with ...Ref7.} 30. Rfe1 Qd3) 30. Rfe1 {[#]} Qc2 (30... Qg4 $1 $19 {[%cal Of5f2]} 31. f4 h6) 31. f4 $11 Qxb3 32. g4 (32. Qe2 $15) 32... Rf8 $17 33. a5 $2 (33. Qe2 $17 {was called for.}) 33... Qd3 $2 (33... Bb4 $19 34. Ba1 Qa3) 34. Qe2 Qe4 {Black is much more active.} 35. a6 (35. Qg2 $1 $15) 35... b5 (35... h6 $19 {White must now prevent ...hxg5.} 36. gxh6 g5) 36. Rbc1 Rc7 37. Rc2 $2 (37. Qc2 $17) 37... Rb8 $2 (37... c5 $19 {is more deadly.} 38. dxc5 Bxc5) 38. Ra1 $2 {[%mdl 8192]} (38. Qg2 $17 {was the crucial defense.}) 38... Rb6 (38... c5 $142 39. Kf2 (39. dxc5 $2 Bxc5 40. Bc1 Qxf4 $19) 39... c4) 39. Kf2 b4 (39... c5 $19 {and Black stays clearly on top.} 40. dxc5 Bxc5) 40. Bc1 $2 {[%mdl 8192]} (40. Rcc1 $17 {is more resistant.}) 40... b3 ({Avoid the trap} 40... Qh1 $2 41. Bb2 Qh2+ 42. Ke1 $19) 41. Rb2 c5 ({Inferior is} 41... Qh1 42. Qf3 Qxf3+ 43. Kxf3 $17) 42. dxc5 Rxc5 43. Rab1 Rc4 ({Don't go for} 43... Qh1 $2 44. Bd2 Qh2+ 45. Kf1 Qh1+ 46. Kf2 Qh2+ 47. Kf1 Qh3+ 48. Kf2 $19) 44. Bd2 {Weighted Error Value: White=0.61/Black=0.53} 0-1

[Event "TUR-ch U13-18 Open 2023"]
[Site "Antalya"]
[Date "2023.01.22"]
[Round "1"]
[White "Duygulu, Ugur"]
[Black "Gungor, Cihan Akif"]
[Result "0-1"]
[ECO "C58"]
[WhiteElo "1144"]
[BlackElo "1871"]
[Annotator "NA RC COMBH"]
[PlyCount "44"]
[EventDate "2023.01.17"]
[EventType "swiss"]
[EventCountry "TUR"]
[SourceTitle "playchess.com"]
[Source "ChessBase"]
[SourceQuality "1"]
[TimeControl "5400+30"]

1. e4 e5 2. Nf3 Nc6 3. Bc4 Nf6 4. Ng5 d5 5. exd5 Na5 6. Bb5+ c6 7. dxc6 bxc6 8. Bd3 {is cutting edge theory.} Nd5 9. Nf3 Nf4 10. Bf1 e4 {[#]} 11. Ne5 $146 ({Predecessor:} 11. d3 exf3 12. Bxf4 Qf6 13. Qxf3 Qxb2 14. Qe2+ Be6 15. Be5 Qc1+ 16. Qd1 Qg5 17. Bc3 {½-½ Socko,B (2627)-Bartel,M (2598) POL-ch Warsaw 2019 (8)}) 11... Qg5 12. d4 Nxg2+ 13. Bxg2 Qxg2 14. Rf1 Ba6 15. c4 Nxc4 16. Qe2 Bb4+ 17. Nc3 Nxe5 18. Qxa6 Nd3+ 19. Ke2 Qf3+ 20. Kd2 O-O $19 ({Worse is} 20... Nxf2 21. Qxc6+ Ke7 22. Qb7+ Kf6 23. Qa6+ Ke7 24. Qb7+ Kf6 25. Qc6+ Ke7 $11 26. Qb7+ $11) 21. Kc2 Bxc3 22. bxc3 Qe2+ 0-1

[Event "TUR-ch U13-18 Open 2023"]
[Site "Antalya"]
[Date "2023.01.23"]
[Round "2"]
[White "Ozen, Metehan"]
[Black "Egeli, Sercan Veli"]
[Result "1-0"]
[ECO "B39"]
[WhiteElo "2137"]
[BlackElo "1666"]
[Annotator "TA"]
[PlyCount "99"]
[EventDate "2023.01.17"]
[EventType "swiss"]
[EventCountry "TUR"]
[SourceTitle "playchess.com"]
[Source "ChessBase"]
[SourceQuality "1"]
[TimeControl "5400+30"]

{[%evp 24,98,69,68,78,65,70,38,64,75,150,141,241,248,303,294,282,258,295,296,402,425,418,416,417,414,410,352,419,381,475,468,435,475,490,476,494,463,477,486,443,432,581,579,585,566,868,871,838,830,829,742,1632,1517,29975,29976,29963,12827,29964,29965,29988,29989,29990,29991,29991,29991,29996,29991,29993,29994,29996,29997,29997,29994,29998,29999,29999]} 1. e4 {[%emt 0:01:00]} c5 {[%emt 0:01:00]} 2. Nf3 {[%emt 0:00:00]} g6 {[%emt 0:01:30]} 3. d4 {[%emt 0:01:00]} cxd4 {[%emt 0:00:30]} 4. Nxd4 {[%emt 0:00:30]} Bg7 {[%emt 0:00:30]} 5. c4 {[%emt 0:00:30]} Nc6 {[%emt 0:02:30]} 6. Be3 {[%emt 0:00:30]} Nf6 {[%emt 0:00:30]} 7. Nc3 {[%emt 0:00:00]} Ng4 {[%emt 0:00:30]} 8. Qxg4 {[%emt 0:00:00]} Nxd4 {[%emt 0:00:00]} 9. Qd1 {[%emt 0:02:30]} Ne6 {[%emt 0:10:00]} 10. Qd2 {[%emt 0:01:30]} O-O {[%emt 0:26:30]} 11. Be2 {[%emt 0:05:30]} b6 {[%emt 0:01:30]} 12. O-O {[%emt 0:02:30]} Bb7 {[%emt 0:07:30]} 13. f3 {[%emt 0:05:30][%cal Bf2f3,Bf3f4][%mdl 32]} Rc8 {[%emt 0:02:30] B39: Sicilian: Maroczy Bind with 5...Bg7 and 7...Ng4.} 14. Rac1 {[%emt 0:07:30]} d6 {[%emt 0:02:30]} 15. Nd5 {[%emt 0:14:30] [#]} f5 $146 {[%emt 0:17:30] White is slightly better.} ({Predecessor:} 15... Nc7 16. b3 Qd7 17. Rfd1 Nxd5 18. exd5 Rfe8 19. Bd4 e5 20. dxe6 Qxe6 21. Bf1 Be5 {½-½ Sapunov,E (2461)-Visakh,N (2506) Titled Tuesday intern op 10th May Early blitz 2022 (10)}) 16. exf5 {[%emt 0:01:30] White is more active.} Rxf5 {[%emt 0:00:30] [#]} (16... gxf5 $142 17. b3 Qd7) 17. f4 $1 $16 {[%emt 0:04:30]} Bxd5 {[%emt 0:09:36]} (17... b5 $16) 18. cxd5 $18 {[%emt 0:01:30]} Rxc1 {[%emt 0:02:14]} 19. Rxc1 {[%emt 0:00:30]} Nc7 {[%emt 0:03:15] Black is weak on the light squares} 20. Bg4 {[%emt 0:01:30]} Rf8 {[%emt 0:00:22]} 21. Qc2 {[%emt 0:02:30]} Ne8 {[%emt 0:07:00]} 22. Qa4 {[%emt 0:06:30]} e5 {[%emt 0:02:06]} 23. dxe6 {[%emt 0:00:30]} ({Weaker is} 23. Qxa7 exf4 24. Bxb6 (24. Qxb6 Qg5 $16) 24... Qg5 $16) (23. Be6+ Kh8 $16) 23... Qe7 {[%emt 0:00:26]} 24. Qd7 {[%emt 0:01:30]} Bf6 {[%emt 0:00:06]} 25. b3 {[%emt 0:10:30]} Kh8 {[%emt 0:01:15]} 26. Rc8 {[%emt 0:03:30]} h5 {[%emt 0:01:00]} 27. Bf3 {[%emt 0:07:23]} Ng7 {[%emt 0:00:00]} 28. Rxf8+ {[%emt 0:00:58]} Qxf8 {[%emt 0:00:24]} 29. Be4 {[%emt 0:00:30]} ({Less strong is} 29. Qxa7 Nxe6 30. Qxb6 Nc5 $18) 29... Qe7 {[%emt 0:00:30]} 30. Bxg6 {[%emt 0:00:30][%cal Be4g6,Bg6h5,Bh5f3,Bf3d5][%mdl 32] [#] Black must now prevent f5. A strong pair of Bishops.} Nxe6 {[%emt 0:00:30]} 31. Qxe7 {[%emt 0:00:30]} Bxe7 {[%emt 0:00:30]} 32. Bxh5 {[%emt 0:00:30][%mdl 4096] Endgame KBB-KBN} Kg7 {[%emt 0:00:30]} 33. Bf3 {[%emt 0:03:56]} Bf6 {[%emt 0:01:01]} 34. Kf2 {[%emt 0:01:34]} Nd4 {[%emt 0:00:30]} 35. Bxd4 {[%emt 0:00:30]} Bxd4+ {[%emt 0:00:30] KB-KB} 36. Kg3 {[%emt 0:00:30]} Kf6 {[%emt 0:00:30]} 37. Bd5 {[%emt 0:00:30]} Kf5 {[%emt 0:00:30]} 38. Kf3 {[%emt 0:00:30] Hoping for h4.} Bg1 {[%emt 0:00:00]} 39. g4+ {[%emt 0:01:27][%cal Bg2g4,Bg4g5,Bg5g6,Bg6g7][%mdl 32]} Kf6 {[%emt 0:00:17]} 40. h4 {[%emt 0:00:00][%cal Bh2h4,Bh4h5,Bh5h6][%mdl 32]} Bh2 {[%emt 0:00:30]} 41. h5 {[%emt 0:00:00] White mates.} Kg7 {[%emt 0:00:19]} 42. g5 {[%emt 0:00:13]} Kh7 {[%emt 0:00:12]} 43. Kg4 {[%emt 0:00:13]} a5 {[%emt 0:00:09]} 44. h6 {[%emt 0:00:59]} b5 {[%emt 0:00:30]} 45. Be4+ {[%emt 0:00:30]} Kh8 {[%emt 0:00:30]} 46. g6 {[%emt 0:00:00]} a4 {[%emt 0:00:00]} 47. g7+ {[%emt 0:00:08]} Kg8 {[%emt 0:00:00]} 48. Kg5 {[%emt 0:00:33]} axb3 {[%emt 0:00:00]} 49. Kg6 {[%emt 0:00:00][%csl Gg6][%cal Rh6h7]} bxa2 {[%emt 0:00:21]} 50. h7# {[%emt 0:00:00] Black did not feel at home in the position after the opening. An entertaining game by Ozen.   Weighted Error Value: White=0.04 (flawless) /Black=0.63} 1-0